{"text_format":"1","workbook":"xlsx","n_sheets":3,"sheets":["遊び方","【理解度テスト】3択問題に挑戦！","Q&A"],"not_rendered":{"charts":0,"images":15,"macros":1,"external_links":3,"defined_names":261,"comments":0,"pivot_tables":0},"unopened":[],"bounds":{"document_bytes":16777216,"sheet_cells":100000,"rows_first":2000,"rows_last":500,"rows_between":2000,"halvings":0,"cell_chars":16384,"cell_head_chars":4096},"cells_cut":0,"cells_raw":0,"read":"whole","date_system":"1900"}

{"sheet":"遊び方","index":0,"n_rows":28,"n_cols":2,"rows_kept":28,"cut":false,"hidden":false,"merged":[]}
[]
[]
[]
[]
[]
[]
[]
[]
[]
[]
[]
[]
[]
[]
[]
[]
[]
[]
[]
[]
[]
[]
[]
[]
[]
[]
[]
[null,1]

{"sheet":"【理解度テスト】3択問題に挑戦！","index":1,"n_rows":102,"n_cols":23,"rows_kept":102,"cut":false,"hidden":false,"merged":[[0,4,1,14],[4,13,5,14],[21,7,21,8],[2,13,3,14],[19,7,20,8],[19,9,20,10],[15,7,15,9]]}
[null,"▼解きたい問題を選べるワン！",null,null,"モードを選択して解答スタートだワン！",null,null,null,null,null,null,null,null,null,null,null,{"$f":"IFERROR(IF(INDEX('Q&A'!$B$2:$B$1063,MATCH($B$2,'Q&A'!$A$2:$A$1063,0))=\"\",\"\",INDEX('Q&A'!$B$2:$B$1063,MATCH($B$2,'Q&A'!$A$2:$A$1063,0))),\"\")","v":""},null,null,null,0.8438715934753418,46,{"$f":"IFERROR(RANK(U1,U:U)+$M$29-1,\"\")","v":13}]
[null,null,{"$f":"IF($T$1-$M$29+1<0,0,$T$1-$M$29+1)","v":0},{"$f":"$N$29-$M29+1","v":50},null,null,null,null,null,null,null,null,null,null,null,null,"正解だワン！",null,null,5,0.82914513349533081,48,{"$f":"IFERROR(RANK(U2,U:U)+$M$29-1,\"\")","v":14}]
[null,null,null,null,null,null,null,null,null,null,null,null,null,null,null,null,"不正解だワン！",null,null,null,0.13890373706817627,25,44]
[null,null,null,null,null,null,null,null,null,null,null,null,null,null,null,null,null,null,null,{"$f":"$N$29","v":50},0.94404870271682739,5,7]
[null,null,null,null,null,null,null,null,null,null,null,null,null,null,null,"自治体が指定する保管場所",{"$f":"INDEX($A$14:$A$16,MATCH($P$5,$B$14:$B$16,0))","v":{"$error":"#N/A"}},{"$f":"INDEX('Q&A'!$E$2:$E$1063,MATCH($B$2,'Q&A'!$A$2:$A$1063,0))","v":{"$error":"#N/A"}},null,null,0.99745535850524902,16,1]
[null,null,null,null,null,null,null,null,null,null,null,null,null,null,null,null,{"$f":"INDEX('Q&A'!$F$2:$F$1063,MATCH($B$2,'Q&A'!$A$2:$A$1063,0))","v":{"$error":"#N/A"}},null,null,null,0.22744840383529663,13,41]
[null,null,null,null,null,null,null,null,null,null,null,null,null,null,null,null,null,null,null,null,0.70810830593109131,3,22]
[null,null,null,null,null,null,null,null,null,null,null,null,null,null,null,null,null,null,null,null,0.26612859964370728,39,40]
[null,null,null,null,null,null,null,null,null,null,null,null,null,null,null,null,null,null,null,null,0.85764694213867188,36,12]
["答え：",{"$f":"INDEX(A17:A19,MATCH(INDEX(B14:B16,MATCH(R5,A14:A16,0)),B17:B19,0))","v":{"$error":"#N/A"}},null,null,null,null,null,null,null,null,null,null,null,null,null,null,null,null,null,null,0.81751269102096558,22,15]
[null,null,null,null,null,null,null,null,null,null,null,null,null,null,null,null,null,null,null,null,0.73465311527252197,10,18]
[null,null,null,null,null,null,null,null,null,null,null,null,null,null,null,null,null,null,null,null,0.51439028978347778,8,34]
[null,null,null,null,null,null,null,null,null,null,null,null,null,null,null,null,null,null,null,null,0.90959954261779785,49,9]
[{"$f":"'Q&A'!$C$2","v":"もも"},{"$f":"IFERROR(INDEX('Q&A'!$D$2:$D$1063,MATCH($B$2,'Q&A'!$A$2:$A$1063,0)),\"\")","v":""},0.26379978656768799,{"$f":"IFERROR(RANK(G14,G:G),\"\")","v":3},{"$f":"C14","v":0.26379978656768799},{"$f":"E14","v":0.26379978656768799},{"$f":"F14","v":0.26379978656768799},null,null,null,null,null,null,null,null,null,null,null,null,null,0.72397178411483765,37,21]
[{"$f":"'Q&A'!$C$3","v":"備長炭"},{"$f":"IFERROR(INDEX('Q&A'!$D$2:$D$1063,MATCH($B$2,'Q&A'!$A$2:$A$1063,0)+1),\"\")","v":""},0.38533955812454224,{"$f":"IFERROR(RANK(G15,G:G),\"\")","v":2},{"$f":"C15","v":0.38533955812454224},{"$f":"E15","v":0.38533955812454224},0.38533955812454224,null,null,null,null,null,null,null,null,null,null,null,null,null,0.81201350688934326,44,16]
[{"$f":"'Q&A'!$C$4","v":"パンダ"},{"$f":"IFERROR(INDEX('Q&A'!$D$2:$D$1063,MATCH($B$2,'Q&A'!$A$2:$A$1063,0)+2),\"\")","v":""},0.55187869071960449,1,0.55187869071960449,0.55187869071960449,0.55187869071960449,15,null,null,null,null,null,null,null,null,null,null,null,null,7.9046785831451416E-2,2,48]
[{"$f":"$A$14","v":"もも"},{"$f":"INDEX($B$14:$B$16,MATCH(D14,$D$17:$D$19,0))","v":""},null,1,null,null,null,null,null,null,null,null,null,null,null,null,null,null,null,null,0.27794694900512695,33,39]
[{"$f":"$A$15","v":"備長炭"},{"$f":"INDEX($B$14:$B$16,MATCH(D15,$D$17:$D$19,0))","v":""},null,2,null,null,null,null,null,null,null,null,null,null,null,null,null,null,null,null,0.94682568311691284,18,6]
[{"$f":"$A$16","v":"パンダ"},"",null,3,null,null,null,null,null,{"$f":"RANDBETWEEN(1,10)","v":4},null,null,null,null,null,null,null,null,null,null,0.94018948078155518,1,8]
[null,null,null,null,null,null,null,1,null,50,null,null,null,null,null,null,null,null,null,null,0.96009808778762817,17,4]
[null,null,null,null,null,null,null,null,null,null,null,null,null,null,null,null,null,null,null,null,0.96268916130065918,21,3]
[null,null,null,null,null,null,null,"©OtoLogic",null,null,null,null,null,null,null,null,null,null,null,null,0.48607438802719116,31,35]
[null,null,null,null,null,null,null,null,null,null,null,null,null,null,null,null,null,null,null,null,0.65033948421478271,4,25]
[0,null,null,null,null,null,null,null,null,null,null,null,{"$f":"$H$16","v":15},null,null,null,null,null,null,null,3.2910406589508057E-2,45,49]
[0,null,null,null,null,null,null,null,null,null,null,null,null,null,null,null,null,null,null,null,0.57361316680908203,29,30]
[null,null,null,null,null,null,null,null,null,null,null,null,null,null,null,null,null,null,null,null,0.95150488615036011,30,5]
[1,null,null,null,null,null,null,null,null,null,null,null,null,null,null,null,null,null,null,null,0.55225050449371338,26,32]
[null,null,null,null,null,null,null,null,null,null,null,null,null,null,null,null,null,null,null,null,0.28117209672927856,40,38]
[null,null,null,null,null,{"$f":"SUM(B28:E28)","v":0},null,null,null,null,null,null,{"$f":"$H$20","v":1},{"$f":"$J$20","v":50},null,null,null,null,null,null,0.62556576728820801,50,27]
[null,null,null,null,null,null,null,null,null,null,null,null,null,null,null,null,null,null,null,null,0.85796397924423218,32,11]
[null,null,null,null,null,null,null,null,null,null,null,null,null,null,null,null,null,null,null,null,0.62961089611053467,7,26]
[null,null,null,null,null,null,null,null,null,null,null,null,null,null,null,null,null,null,null,null,0.5802493691444397,42,29]
[null,null,null,null,null,null,null,null,null,null,null,null,null,null,null,null,null,null,null,null,0.72833395004272461,43,20]
[null,null,null,null,null,null,null,null,null,null,null,null,null,null,null,null,null,null,null,null,8.0817878246307373E-2,27,47]
[null,null,null,null,null,null,null,null,null,null,null,null,null,null,null,null,null,null,null,null,2.3366093635559082E-2,11,50]
[null,null,null,null,null,null,null,null,null,null,null,null,null,null,null,null,null,null,null,null,0.46130067110061646,9,37]
[null,null,null,null,null,null,null,null,null,null,null,null,null,null,null,null,null,null,null,null,0.14749693870544434,15,43]
[null,null,null,null,null,null,null,null,null,null,null,null,null,null,null,null,null,null,null,null,0.62006658315658569,28,28]
[null,null,null,null,null,null,null,null,null,null,null,null,null,null,null,null,null,null,null,null,0.73351609706878662,14,19]
[null,null,null,null,null,null,null,null,null,null,null,null,null,null,null,null,null,null,null,null,0.65874677896499634,20,24]
[null,null,null,null,null,null,null,null,null,null,null,null,null,null,null,null,null,null,null,null,0.88305473327636719,34,10]
[null,null,null,null,null,null,null,null,null,null,null,null,null,null,null,null,null,null,null,null,0.21013087034225464,6,42]
[null,null,null,null,null,null,null,null,null,null,null,null,null,null,null,null,null,null,null,null,0.12058031558990479,38,45]
[null,null,null,null,null,null,null,null,null,null,null,null,null,null,null,null,null,null,null,null,0.53310710191726685,19,33]
[null,null,null,null,null,null,null,null,null,null,null,null,null,null,null,null,null,null,null,null,0.56110596656799316,41,31]
[null,null,null,null,null,null,null,null,null,null,null,null,null,null,null,null,null,null,null,null,0.74268859624862671,35,17]
[null,null,null,null,null,null,null,null,null,null,null,null,null,null,null,null,null,null,null,null,0.46351993083953857,23,36]
[null,null,null,null,null,null,null,null,null,null,null,null,null,null,null,null,null,null,null,null,9.7763597965240479E-2,47,46]
[null,null,null,null,null,null,null,null,null,null,null,null,null,null,null,null,null,null,null,null,0.66387414932250977,24,23]
[null,null,null,null,null,null,null,null,null,null,null,null,null,null,null,null,null,null,null,null,0.9655424952507019,12,2]
[null,null,null,null,null,null,null,null,null,null,null,null,null,null,null,null,null,null,null,null,null,null,""]
[null,null,null,null,null,null,null,null,null,null,null,null,null,null,null,null,null,null,null,null,null,null,""]
[null,null,null,null,null,null,null,null,null,null,null,null,null,null,null,null,null,null,null,null,null,null,""]
[null,null,null,null,null,null,null,null,null,null,null,null,null,null,null,null,null,null,null,null,null,null,""]
[null,null,null,null,null,null,null,null,null,null,null,null,null,null,null,null,null,null,null,null,null,null,""]
[null,null,null,null,null,null,null,null,null,null,null,null,null,null,null,null,null,null,null,null,null,null,""]
[null,null,null,null,null,null,null,null,null,null,null,null,null,null,null,null,null,null,null,null,null,null,""]
[null,null,null,null,null,null,null,null,null,null,null,null,null,null,null,null,null,null,null,null,null,null,""]
[null,null,null,null,null,null,null,null,null,null,null,null,null,null,null,null,null,null,null,null,null,null,""]
[null,null,null,null,null,null,null,null,null,null,null,null,null,null,null,null,null,null,null,null,null,null,""]
[null,null,null,null,null,null,null,null,null,null,null,null,null,null,null,null,null,null,null,null,null,null,""]
[null,null,null,null,null,null,null,null,null,null,null,null,null,null,null,null,null,null,null,null,null,null,""]
[null,null,null,null,null,null,null,null,null,null,null,null,null,null,null,null,null,null,null,null,null,null,""]
[null,null,null,null,null,null,null,null,null,null,null,null,null,null,null,null,null,null,null,null,null,null,""]
[null,null,null,null,null,null,null,null,null,null,null,null,null,null,null,null,null,null,null,null,null,null,""]
[null,null,null,null,null,null,null,null,null,null,null,null,null,null,null,null,null,null,null,null,null,null,{"$f":"IFERROR(RANK(U66,U:U)+$M$29-1,\"\")","v":""}]
[null,null,null,null,null,null,null,null,null,null,null,null,null,null,null,null,null,null,null,null,null,null,""]
[null,null,null,null,null,null,null,null,null,null,null,null,null,null,null,null,null,null,null,null,null,null,""]
[null,null,null,null,null,null,null,null,null,null,null,null,null,null,null,null,null,null,null,null,null,null,""]
[null,null,null,null,null,null,null,null,null,null,null,null,null,null,null,null,null,null,null,null,null,null,""]
[null,null,null,null,null,null,null,null,null,null,null,null,null,null,null,null,null,null,null,null,null,null,""]
[null,null,null,null,null,null,null,null,null,null,null,null,null,null,null,null,null,null,null,null,null,null,""]
[null,null,null,null,null,null,null,null,null,null,null,null,null,null,null,null,null,null,null,null,null,null,""]
[null,null,null,null,null,null,null,null,null,null,null,null,null,null,null,null,null,null,null,null,null,null,""]
[null,null,null,null,null,null,null,null,null,null,null,null,null,null,null,null,null,null,null,null,null,null,""]
[null,null,null,null,null,null,null,null,null,null,null,null,null,null,null,null,null,null,null,null,null,null,""]
[null,null,null,null,null,null,null,null,null,null,null,null,null,null,null,null,null,null,null,null,null,null,""]
[null,null,null,null,null,null,null,null,null,null,null,null,null,null,null,null,null,null,null,null,null,null,""]
[null,null,null,null,null,null,null,null,null,null,null,null,null,null,null,null,null,null,null,null,null,null,""]
[null,null,null,null,null,null,null,null,null,null,null,null,null,null,null,null,null,null,null,null,null,null,""]
[null,null,null,null,null,null,null,null,null,null,null,null,null,null,null,null,null,null,null,null,null,null,""]
[null,null,null,null,null,null,null,null,null,null,null,null,null,null,null,null,null,null,null,null,null,null,""]
[null,null,null,null,null,null,null,null,null,null,null,null,null,null,null,null,null,null,null,null,null,null,""]
[null,null,null,null,null,null,null,null,null,null,null,null,null,null,null,null,null,null,null,null,null,null,""]
[null,null,null,null,null,null,null,null,null,null,null,null,null,null,null,null,null,null,null,null,null,null,""]
[null,null,null,null,null,null,null,null,null,null,null,null,null,null,null,null,null,null,null,null,null,null,""]
[null,null,null,null,null,null,null,null,null,null,null,null,null,null,null,null,null,null,null,null,null,null,""]
[null,null,null,null,null,null,null,null,null,null,null,null,null,null,null,null,null,null,null,null,null,null,""]
[null,null,null,null,null,null,null,null,null,null,null,null,null,null,null,null,null,null,null,null,null,null,""]
[null,null,null,null,null,null,null,null,null,null,null,null,null,null,null,null,null,null,null,null,null,null,""]
[null,null,null,null,null,null,null,null,null,null,null,null,null,null,null,null,null,null,null,null,null,null,""]
[null,null,null,null,null,null,null,null,null,null,null,null,null,null,null,null,null,null,null,null,null,null,""]
[null,null,null,null,null,null,null,null,null,null,null,null,null,null,null,null,null,null,null,null,null,null,""]
[null,null,null,null,null,null,null,null,null,null,null,null,null,null,null,null,null,null,null,null,null,null,""]
[null,null,null,null,null,null,null,null,null,null,null,null,null,null,null,null,null,null,null,null,null,null,""]
[null,null,null,null,null,null,null,null,null,null,null,null,null,null,null,null,null,null,null,null,null,null,""]
[null,null,null,null,null,null,null,null,null,null,null,null,null,null,null,null,null,null,null,null,null,null,""]
[null,null,null,null,null,null,null,null,null,null,null,null,null,null,null,null,null,null,null,null,null,null,""]
[null,null,null,null,null,null,null,null,null,null,null,null,null,null,null,null,null,null,null,null,null,null,""]
[null,null,null,null,null,null,null,null,null,null,null,null,null,null,null,null,null,null,null,null,null,null,""]
[null,null,null,null,null,null,null,null,null,null,null,null,null,null,null,null,null,null,null,null,null,null,""]
[null,null,null,null,null,null,null,null,null,null,null,null,null,null,null,null,null,null,null,null,null,null,""]

{"sheet":"Q&A","index":2,"n_rows":152,"n_cols":7,"rows_kept":152,"cut":false,"hidden":false,"merged":[[145,0,147,0],[145,1,147,1],[145,4,147,4],[145,5,147,5],[145,6,147,6],[148,0,150,0],[148,1,150,1],[148,4,150,4],[148,5,150,5],[148,6,150,6],[139,0,141,0],[139,1,141,1],[139,4,141,4],[139,5,141,5],[139,6,141,6],[142,0,144,0],[142,1,144,1],[142,4,144,4],[142,5,144,5],[142,6,144,6],[133,0,135,0],[133,1,135,1],[133,4,135,4],[133,5,135,5],[133,6,135,6],[136,0,138,0],[136,1,138,1],[136,4,138,4],[136,5,138,5],[136,6,138,6],[127,0,129,0],[127,1,129,1],[127,4,129,4],[127,5,129,5],[127,6,129,6],[130,0,132,0],[130,1,132,1],[130,4,132,4],[130,5,132,5],[130,6,132,6],[121,0,123,0],[121,1,123,1],[121,4,123,4],[121,5,123,5],[121,6,123,6],[124,0,126,0],[124,1,126,1],[124,4,126,4],[124,5,126,5],[124,6,126,6],[115,0,117,0],[115,1,117,1],[115,4,117,4],[115,5,117,5],[115,6,117,6],[118,0,120,0],[118,1,120,1],[118,4,120,4],[118,5,120,5],[118,6,120,6],[112,0,114,0],[112,1,114,1],[112,4,114,4],[112,5,114,5],[112,6,114,6],[106,0,108,0],[106,1,108,1],[106,4,108,4],[106,5,108,5],[106,6,108,6],[109,0,111,0],[109,1,111,1],[109,4,111,4],[109,5,111,5],[109,6,111,6],[100,0,102,0],[100,1,102,1],[100,4,102,4],[100,5,102,5],[100,6,102,6],[103,0,105,0],[103,1,105,1],[103,4,105,4],[103,5,105,5],[103,6,105,6],[94,0,96,0],[94,1,96,1],[94,4,96,4],[94,5,96,5],[94,6,96,6],[97,0,99,0],[97,1,99,1],[97,4,99,4],[97,5,99,5],[97,6,99,6],[88,0,90,0],[88,1,90,1],[88,4,90,4],[88,5,90,5],[88,6,90,6],[91,0,93,0],[91,1,93,1],[91,4,93,4],[91,5,93,5],[91,6,93,6],[82,0,84,0],[82,1,84,1],[61,0,63,0],[61,1,63,1],[85,0,87,0],[85,1,87,1],[85,4,87,4],[85,5,87,5],[85,6,87,6],[82,6,84,6],[73,0,75,0],[73,1,75,1],[73,4,75,4],[73,5,75,5],[73,6,75,6],[76,0,78,0],[76,1,78,1],[76,4,78,4],[76,5,78,5],[76,6,78,6],[79,0,81,0],[82,4,84,4],[82,5,84,5],[79,1,81,1],[58,1,60,1],[58,4,60,4],[58,5,60,5],[58,6,60,6],[67,0,69,0],[67,1,69,1],[67,4,69,4],[67,5,69,5],[67,6,69,6],[61,4,63,4],[61,5,63,5],[61,6,63,6],[64,0,66,0],[64,1,66,1],[64,4,66,4],[64,5,66,5],[64,6,66,6],[79,5,81,5],[79,6,81,6],[70,0,72,0],[70,1,72,1],[70,4,72,4],[70,5,72,5],[70,6,72,6],[79,4,81,4],[49,0,51,0],[49,1,51,1],[49,4,51,4],[49,5,51,5],[49,6,51,6],[55,0,57,0],[55,1,57,1],[55,4,57,4],[55,5,57,5],[55,6,57,6],[52,0,54,0],[52,1,54,1],[52,4,54,4],[52,5,54,5],[52,6,54,6],[58,0,60,0],[46,0,48,0],[46,1,48,1],[46,4,48,4],[46,5,48,5],[46,6,48,6],[31,0,33,0],[31,1,33,1],[31,4,33,4],[31,5,33,5],[31,6,33,6],[43,0,45,0],[43,1,45,1],[43,4,45,4],[43,5,45,5],[43,6,45,6],[40,0,42,0],[40,1,42,1],[40,4,42,4],[40,5,42,5],[40,6,42,6],[28,0,30,0],[28,1,30,1],[28,4,30,4],[28,5,30,5],[28,6,30,6],[37,0,39,0],[37,1,39,1],[37,4,39,4],[37,5,39,5],[37,6,39,6],[34,0,36,0],[34,1,36,1],[34,4,36,4],[34,5,36,5],[34,6,36,6],[25,0,27,0],[25,1,27,1],[25,4,27,4],[25,5,27,5],[25,6,27,6],[22,0,24,0],[22,1,24,1],[22,4,24,4],[22,5,24,5],[22,6,24,6],[19,6,21,6],[4,6,6,6],[7,6,9,6],[1,6,3,6],[13,6,15,6],[16,6,18,6],[0,2,0,3],[10,6,12,6],[10,4,12,4],[10,5,12,5],[16,4,18,4],[16,5,18,5],[7,4,9,4],[7,5,9,5],[13,4,15,4],[13,5,15,5],[19,0,21,0],[19,1,21,1],[19,4,21,4],[19,5,21,5],[1,0,3,0],[1,1,3,1],[1,4,3,4],[1,5,3,5],[4,0,6,0],[4,1,6,1],[4,4,6,4],[4,5,6,5],[7,0,9,0],[16,0,18,0],[16,1,18,1],[10,0,12,0],[10,1,12,1],[7,1,9,1],[13,0,15,0],[13,1,15,1]]}
["Ｎｏ．","設問","選択肢とその内容",null,"答えの選択肢","解説","先程の解答結果"]
[1,"被災した家具等を仮置場へ直接持っていけない場合は、自宅近くの○○へ運び込むワン。","もも","集積所","もも","運搬車両が不足している場合等やむを得ず仮置場への搬入が困難である場合は、自宅近くに自治会等が設置した集積所へいったん運び入れるワン。"]
[null,null,"備長炭","ごみステーション"]
[null,null,"パンダ","駐車場"]
[2,"被災した家具等を軽トラに載せるときは、○○から順番に載せてくワン。","もも","仮置場で最初に降ろすもの","備長炭","仮置場では、迅速な荷降ろしが求められるから、運搬車両からスムーズに荷降ろしできるように、仮置場で最初に荷降ろしするものは最後に載せるワン。"]
[null,null,"備長炭","仮置場で最後に降ろすもの"]
[null,null,"パンダ","重たいもの"]
[3,"仮置場へ搬入するときは、被災した家具等かを確認するために、○○の提示を求められることもあるから注意が必要ワン。","もも","免許証","パンダ","罹災証明書は市役所の窓口で交付を受ける必要があるワン。また、仮置場によっては当初は罹災証明書の提示が必要なくても、途中から必要になる場合もあるから注意が必要ワン。"]
[null,null,"備長炭","本人確認書類"]
[null,null,"パンダ","罹災証明書"]
[4,"災害に見舞われたときにできるだけ被災したごみを出さないよう、日ごろから○○を整理することが大切ワン。","もも","不要なもの","もも","普段何気なく使ったり置いたりしているものが、災害時には一気に被災したごみに化けてしまうこともあるから、日ごろから不要なものを処分する「断捨離」を行うことが大切ワン。"]
[null,null,"備長炭","売れないもの"]
[null,null,"パンダ","古いもの"]
[5,"災害で大事な位牌がどこかにいってしまったら、まずは○○に行けば保管されているかもしれないワン！","もも","災害ボランティアセンター","パンダ","位牌やアルバム等、被災者にとって価値があると考えられるものは、「思い出の品」として、自治体が指定する場所に清潔な状態で保管しておくワン。キャッシュカードや財布等は最寄りの警察署に届けるワン。"]
[null,null,"備長炭","最寄りの警察署"]
[null,null,"パンダ","自治体が指定する保管場所"]
[6,"腐敗性のあるものを仮置場へ持ち込まないよう、搬出時にはとくに○○の中身を確認しておく必要があるワン。","もも","タンス","備長炭","補足だけど、冷蔵庫を仮置場に運び入れると仮置場が満杯になるかもしれないから、指定の引取業者に直接持ち込むという方法もあるワン。"]
[null,null,"備長炭","冷蔵庫"]
[null,null,"パンダ","化粧台"]
[7,"災害で出たごみを被災家屋から運び出す等のボランティアをしたい場合は、まず○○でボランティア登録をする必要があるワン。","もも","ボランティアセンター","もも","地域の社会福祉協議会に災害ボランティアセンターが設置されていると思うワン。"]
[null,null,"備長炭","役場"]
[null,null,"パンダ","保健所"]
[8,"ごみステーションに大量の廃畳が置かれているワン！復旧活動の点でどういう問題が生じると思うワン？","もも","景観が乱れる","備長炭","ごみステーションを集積所代わりにしているかどうかは市町村や自治区のお知らせをチェックするワン！"]
[null,null,"備長炭","緊急車両が通れなくなる"]
[null,null,"パンダ","他に置く場所がないから仕方ない"]
[9,"避難所で使用した携帯用トイレの便袋は、固く縛って、臭い防止のために○○に入れて保管するワン！","もも","段ボール","備長炭","避難所で分別して出すときも、感染症防止のために、燃えるごみとは分けて別に保管しておくワン！"]
[null,null,"備長炭","タッパー等の密閉容器"]
[null,null,"パンダ","燃えるごみ袋"]
[10,"普段から退蔵品（要らなくなったもの）を捨てておくことで、災害時に災害ごみや○○の発生を抑えることができるワン。","もも","便乗ごみ","もも","普段から断捨離（不要なものを捨てておくこと）をしておくことが、発災後のリスクを抑えることに直接つながってくるんだワン！"]
[null,null,"備長炭","中古品"]
[null,null,"パンダ","生ごみ"]
[11,"災害ごみ処理に必要な「３つの助」とは、自助、共助、そして○○だワン！","もも","交助","パンダ","発災直後は人手不足になるから、「自分のことは自分でする」という独立自尊の考えのもと、自助（自分で集積所に災害ごみをもっていく）→共助（自分で運べないときは隣近所の人に助けてもらう）→公助（ボランティアや行政の人たちの協力も得つつ運ぶ）という順番を守ってほしいワン！"]
[null,null,"備長炭","功助"]
[null,null,"パンダ","公助"]
[12,"環境省の技術資料では、南海トラフ巨大地震時に全壊家屋1棟から発生すると想定される災害ごみ量は○○トンだワン。","もも",115,"備長炭","この数値（発生原単位というワン）は、東日本大震災時のデータをもとに算出されたものだワン。市町村はこの発生原単位を用いて、どのくらいの災害ごみが発生するかを推計するんだワン。"]
[null,null,"備長炭",117]
[null,null,"パンダ",120]
[13,"災害ごみのうち被災したピアノは、基本的に○○に分類されるワン。","もも","可燃物","パンダ","処理困難物とは、通常どおり行政が回収して処分することが難しいとされるごみのことだワン。その他の例としては、マットレスや廃船舶、廃タイヤ、石綿（アスベスト）等があるワン。"]
[null,null,"備長炭","粗大ごみ"]
[null,null,"パンダ","処理困難物"]
[14,"災害ごみの発生量の換算に使用する「見かけ比重」というのは、○○という意味だワン。","もも","1平方メートルに対するごみのトン数","備長炭","仮置場の必要面積は、災害ごみ発生量（または推計量）（ｔ）をこの見かけ比重（t/m3）で割ることで、おおよその体積（m3）を算出し、それをさらに、災害ごみを積み上げたときの高さ（ｍ）で割ることで最終的に算出するんだワン。"]
[null,null,"備長炭","1立方メートルに対するごみのトン数"]
[null,null,"パンダ","1立方メートルに対するごみのキログラム数"]
[15,"現在、全国のほとんどの自治体では、災害ごみをどのように処理していくかについての体制や理念等を○○としてまとめているワン！","もも","災害廃棄物処理計画","もも","ちなみに和歌山県では、令和4年4月時点で、県内全30自治体のうち全ての自治体が策定済となっているワン！県の災害ごみ処理計画は県循環型社会推進課のホームページに掲載されているワン！"]
[null,null,"備長炭","災害廃棄物対策計画"]
[null,null,"パンダ","災害廃棄物処理実行計画"]
[16,"和歌山県災害ごみ処理計画（平成27年7月策定）によると、南海トラフ巨大地震で発生すると見込まれる災害ごみ量の県内全量は、約○○トンとされているワン！","もも","1,200万","備長炭","これだけの量を県内の一般廃棄物処理施設だけで3年のうちに処理し切ろうとするのは到底無理なので、産業廃棄物処理業者が設置する処理施設や、県外の処理施設への広域処理が必要となってくるワン！"]
[null,null,"備長炭","1,500万"]
[null,null,"パンダ","2,000万"]
[17,"仮置場場内での車両運行は、交通事故防止のために、○○が基本となっているワン！","もも","右回り","もも","左回りだと、仮置場の前面道路から仮置場の入口に入るときに対向車とぶつかってしまう恐れがあるワン！"]
[null,null,"備長炭","左回り"]
[null,null,"パンダ","2車線"]
[18,"災害ごみは、法律上は原則○○とされているワン！","もも","産業廃棄物","備長炭","災害ごみは、法律上明確に定義されているわけではないけど、事業活動に伴って発生したごみとは原則言えないので、一般廃棄物とされているワン。ただし、場合によっては産業廃棄物とみなして処理することもあるワン（排出者責任が明確である場合等）。"]
[null,null,"備長炭","一般廃棄物"]
[null,null,"パンダ","被災廃棄物"]
[19,"環境省の技術資料では、一般的に、災害ごみを積み上げるときの最大の高さは、○○メートルまでとしてるワン！","もも",4,"備長炭","あまり高く積み上げすぎると火災の原因になるので、木くず等の可燃物は最大3メートルまでとするのがベターだワン。"]
[null,null,"備長炭",5]
[null,null,"パンダ",6]
[20,"災害ごみのうち、リサイクル可能なデスクトップPCは○○によるリサイクルを行うワン。","もも","モバイル・リサイクル・ネットワーク","パンダ","災害ごみは可能な限りリサイクルできるものはリサイクルしていくワン！"]
[null,null,"備長炭","パソコンリサイクル推進協会"]
[null,null,"パンダ","パソコン3R推進協会"]
[21,"○○は非飛散性アスベストが混入している可能性があるから、破砕せずコンテナやフレコンに保管するワン！","もも","コンクリートブロック","備長炭","アスベストを吸い込んでしまうと、肺の病気になってしまうから、とても危険だワン！"]
[null,null,"備長炭","スレート"]
[null,null,"パンダ","アスファルト"]
[22,"仮置場での現場作業には、防塵マスク・ヘルメット・ゴーグルのほか、底の丈夫な安全靴・○○を防ぐインソールも必要になってくるワン！","もも","踏み抜き","もも","仮置場場内は、いくら敷鉄板や砂利を敷いているからといっても、ガラスの破片を踏んでしまうことも十分あり得るので、十分な身なりで作業する必要があるワン。"]
[null,null,"備長炭","筋肉痛"]
[null,null,"パンダ","雨水"]
[23,"ライターやスプレー缶等の危険物は、ガスを抜き、火の気がない風通しが良い○○で保管するワン！","もも","屋内","パンダ","スプレー缶は、ガスを抜くときに、キリなどで穴をあけてしまわないようにするワン！"]
[null,null,"備長炭","屋外"]
[null,null,"パンダ","暗所"]
[24,"非常災害時の特例で、事業者が一般廃棄物処理施設を設置する場合の環境アセスの縦覧期間は約○日間に短縮されるワン！","もも",7,"備長炭","注意してほしいのが、この縦覧期間短縮はあらかじめ条例に規定されていることが必要であることだワン！"]
[null,null,"備長炭",14]
[null,null,"パンダ",15]
[25,"令和4年1月1日現在、廃掃法第9条の3の3の縦覧期間の短縮が条例に規定されているのは県内では○○だけだワン！","もも","田辺市","もも","「田辺市廃棄物の処理及び清掃に関する条例」に「田辺市から委託を受けて非常災害により生じた廃棄物の処分を行うための一般廃棄物処理施設に係る生活環境影響調査結果の縦覧等の手続に関する規則」が規定されているワン。"]
[null,null,"備長炭","和歌山市"]
[null,null,"パンダ","新宮市"]
[26,"災害ごみは原則一般廃棄物とされているけど、○○が明白である場合等は産業廃棄物として処理することもあるワン！","もも","事業者の住所","パンダ","排出者責任とは、「排出を防げたはずなのに防げなかった場合に問われる責任」のことだワン。ちなみに、平成23年の紀伊半島大水害のときは、この排出者責任の考えをもとに一部の災害ごみを産業廃棄物として処理したケースもあったワン。"]
[null,null,"備長炭","排出元の事業所名"]
[null,null,"パンダ","排出者責任"]
[27,"被災自動車は、所有者が不明なら○か月間公示したあと引取業者に渡すワン！","もも",3,"備長炭","災害対策基本法の第 64 条第 6 項には、公示の日から起算して 6 か月を経過しても所有者等に返還できない場合、当該工作物等の所有権は市町村に帰属する、と書かれているワン！"]
[null,null,"備長炭",6]
[null,null,"パンダ",12]
[28,"海水を被った木材は、除塩後に消石灰を散布することで○○を防止するワン！","もも","カビやキノコの繁殖","もも","仮置場に運んできた木材もできるだけリサイクルできるような状態に保管しておくことが重要だワン！"]
[null,null,"備長炭","火災"]
[null,null,"パンダ","害虫の発生"]
[29,"環境省の技術資料では、タイヤの野積みは一山あたり幅5m×長さ○m×高さ2～3mで山間6mとしているワン！","もも",5,"備長炭","崩れないよう、あまり高く積み上げすぎないようにするワン！"]
[null,null,"備長炭",10]
[null,null,"パンダ",12]
[30,"令和2年7月豪雨のときの○○のファーストレーン方式の仮置場では、単品のみ積載した車両から優先的に誘導したから、迅速な積降が実現できたワン！","もも","熊本市","備長炭","現場の資源循環協会の方が発案された搬入方式で、「分けたら早い、混ぜたら遅い」を合言葉に市民による分別を促されていたワン！"]
[null,null,"備長炭","人吉市"]
[null,null,"パンダ","益城町"]
[31,"和歌山県災害ごみ処理計画では、震度○以上のときに災害対策本部を設置する旨記載されているワン！","もも","5強","備長炭","その他、県内に津波警報（大津波）が発表された場合も災害対策本部を設置する旨記載されているワン！（和歌山県災害ごみ処理計画p.55）"]
[null,null,"備長炭","6弱"]
[null,null,"パンダ",7]
[32,"集積所を設ける際に難儀する点としては、○○というものがあるワン！","もも","避難所や仮設住宅の設置者側との調整・協議が必要である","備長炭","残り２つの選択肢はどちらかというと仮置場を設置する際に難儀する点と思われるワン！"]
[null,null,"備長炭","町会や自治会等との調整・協議が必要である"]
[null,null,"パンダ","大型(10t)車両による搬出が可能かどうか"]
[33,"災害ごみを仮置場で分別保管しないといけないのは、分けないと○○だワン！","もも","思い出の品の発見に時間がかかるから","備長炭","混廃状態のまま仮置場へ搬入してしまうと、分別を行うためだけに別の仮置場を確保して運搬し分別を行ったり、混廃処理可能な産廃処理企業へ処理委託したりすることなどにより、処理期間、費用が共に増加してしまうワン。"]
[null,null,"備長炭","一廃施設で処理できないから"]
[null,null,"パンダ","仮置場の面積が狭くなるから"]
[34,"災害ごみの搬出時に出てきた○○は自治体が指定の場所で清潔に保管しておく必要があるワン！","もも","トレーディングカード","もも","残り２つの選択肢はいわゆる貴重品扱いになるから、警察に届け出る必要があるワン。"]
[null,null,"備長炭","クレジットカード"]
[null,null,"パンダ","マイナンバーカード"]
[35,"海岸に打ち上げられた流木をボランティアが１箇所に集めて業者に運搬を依頼するときには、その業者に一般廃棄物収集運搬業の許可は○○だワン！","もも","必要","もも","流木は集めた時点でごみとなるから、この場合ボランティアが排出者となるワン。業者自らが集める場合は廃棄物の自己処理となり、廃棄物処理法の許可は不要だワン（廃棄物処理法第7条第1項及び第6項、同法第14条第1項及び第6項）。"]
[null,null,"備長炭","不要"]
[null,null,"パンダ","必要なときもあるの"]
[36,"「片付けごみ回収戦略」とは、○○というものだワン！","もも","街中に散乱するごみをボランティアが集めごみステーションに持っていく","備長炭","片付けごみの巡回回収・戸別回収に必要な相当数の収集運搬車両・人員を確保できる場合に採用可能な戦略だワン。"]
[null,null,"備長炭","集積所に出されたごみを市が回収して仮置場へ持っていく"]
[null,null,"パンダ","門前に出されたごみを不用品回収業者が回収する"]
[37,"県管理施設に漂着した流木の処理について、県又は県から委託を受けた者が市町村に処理委託する場合、委託する業者は市町村からの委託を受ければ一般廃棄物処理業の許可は○○だワン！","もも","必要","備長炭","この場合、排出者（県又は県から委託を受けた者）が他の者に処理を委託するケースに該当せず、通常の市町村の一般廃棄物処理に該当するんだワン。"]
[null,null,"備長炭","不要"]
[null,null,"パンダ","必要な場合もあるん"]
[38,"災害ごみの処理に係る費用の半分を国が負担する制度を○○というワン！","もも","災害等廃棄物処理事業費補助金","もも","市町村が災害ごみを仮置場まで運んだり、保管したりするのにかかった費用の半分を、環境省が補填してくれる制度があるワン！"]
[null,null,"備長炭","災害ごみ等処理事業費補助金"]
[null,null,"パンダ","災害ごみ処理等事業費補助金"]
[39,"令和２年７月豪雨のときに、熊本県人吉市で導入された、災害ごみを一品ずつ仮置場に運んでくる方法を○○と言うワン！","もも","ファーストレーン方式","もも","一品ずつ運んでくることで、仮置場で渋滞が発生しにくくなるだけでなく、近隣の人の同じごみもついでに積んで来れるから、一石二鳥だワン！"]
[null,null,"備長炭","ミドルレーン方式"]
[null,null,"パンダ","ラストレーン方式"]
[40,"避難所に災害ごみの出し方に関するお知らせのチラシを掲示するときに、どんな問題が発生すると思うワン？","もも","掲示板からはがれてしまう","備長炭","チラシは手元に残るから、広報手段としては抜群だけど、掲示したら見てくれる、とは限らないワン！自治体は、いかに効果的にチラシを配布するかについても平時から考えておく必要があるワン！"]
[null,null,"備長炭","他の多くのお知らせのなかに災害ごみに関するお知らせが埋もれてしまう。"]
[null,null,"パンダ","貼るスペースが不足する"]
[41,"片付けごみにあてはまるものは、次のうちどれだワン？","もも","古くなった衣類","パンダ","使わなくなった倉庫のテレビは、仮置場に出すと便乗ごみと見なされてしまうワン！古くなった衣類は生活ごみだから、いつものごみステーションに出すワン！"]
[null,null,"備長炭","倉庫のテレビ"]
[null,null,"パンダ","壊れた電子レンジ"]
[42,"令和２年７月豪雨で熊本県人吉市さんが作った災害ごみチラシには、「荷卸し時間がかかる原因は○○です！」とあるワン！","もも","トラックへの混載","もも","ここでいう「混載」とは、整理した状態でたくさん積む「整理搬入」とは異なる意味なのかどうか、自治体は事前にちゃんと決めておく必要があるワン！"]
[null,null,"備長炭","人手不足"]
[null,null,"パンダ","トラックの渋滞"]
[43,"かつらぎ町の災害ごみの出し方パンフレットには、「不燃性のごみや資源ごみは、○○までは、自宅で保管をお願いします。」とあるワン！","もも","警報が解除される","備長炭","災害時はごみ収集車も被災していたり、道が通れなかったりして、いつもよりごみ収集が遅れることもあるから、不燃ごみや資源ごみ\nといった腐りにくいごみは、しばらく家に保管しておくワン！"]
[null,null,"備長炭","町から連絡がある"]
[null,null,"パンダ","水が引く"]
[44,"きいちゃんカルタの、ある読み札の１枚だワン！「処分しよう！○○ものを　日頃から」","もも","売れない","パンダ","普段から不要な家財や家電等の退蔵品を処分しておくことで、災害時の災害ごみや便乗ごみの発生を抑えることができるワン！"]
[null,null,"備長炭","汚い"]
[null,null,"パンダ","要らない"]
[45,"きいちゃんカルタの、ある読み札の１枚だワン！「びしょ濡れの　○○を運ぶの　数人で」","もも","畳","もも","びしょ濡れになった畳は乾いた状態よりも重くなって、４～５人でやっと運べるぐらいになるワン！訓練のときも、あえて畳をびしょ濡れにして、どのくらい重たくなるか実証してみるのも効果的だワン！"]
[null,null,"備長炭","机"]
[null,null,"パンダ","扉"]
[46,"4Rのうち、「ごみになるものは「断る」「買わない」「持ち込まない」という意味のRはつぎのうちどれワン？","もも","リボーン","備長炭","いろんなものを買いすぎてためこんでしまうと、その分災害ごみの発生リスクが高まるワン！"]
[null,null,"備長炭","リフューズ"]
[null,null,"パンダ","リニューアブル"]
[47,"大変だワン！地震で家が倒壊して、あたり一面、がれきだらけだワン！まず何から仮置場に運んでいけばいいワン・・・？","もも","倒壊した家の瓦","パンダ","倒壊した家屋は、調査してから公費解体するから、瓦や壁、柱などの解体ごみはすぐに仮置場には運ばないワン。みかんなど腐りやすいものはそもそも仮置場に運んでいっちゃダメワン！"]
[null,null,"備長炭","激しい揺れで散乱したみかん"]
[null,null,"パンダ","倒壊した家に押しつぶされた家具"]
[48,"被災家屋からごみ出しをしていたら、次のようなものが出てきたワン！警察に届けるべきものはどれワン・・・？","もも","金庫","もも","ブランド品や卒業アルバムは、すべて思い出の品として、自治体が公民館などで一時的に保管するワン。"]
[null,null,"備長炭","ブランド品"]
[null,null,"パンダ","卒業アルバム"]
[49,"便乗ごみって、どういう意味ワン？","もも","便だらけのごみのこと","備長炭","仮置場に持ち込む災害ごみは、通常の生活ごみとは違って、自治体指定のごみ袋に入れて持ってくる必要がないけど、だからといって被災していないごみも持ってくると、ごみ処理が滞って、復旧・復興の妨げになるから、絶対にやめるワン！"]
[null,null,"備長炭","タダで捨てられることに便乗して出す被災していないごみのこと"]
[null,null,"パンダ","野焼きに便乗して燃やすごみのこと"]
[50,"真っ白な袋に植木鉢を入れて、そのまま仮置場に運んだよ。どういう問題が発生すると思うワン？","もも","カラスが寄ってたかってくる","パンダ","真っ白な袋に災害ごみを入れて運ぶときは、何が入っているのか、袋に大きな字で分かりやすくマジックで書いておくワン！"]
[null,null,"備長炭","盗まれる"]
[null,null,"パンダ","なにが入っているか見た目でわからず、分別に時間がかかる"]
[null,"　"]